bitfinex/quotes_BTCUSD_20240613
["timestamp","ask_amount","ask_price","bid_price","bid_amount"]
[1718239232101,0.00086,68141.0,68140.0,0.81456928]
[1718239232319,0.00086,68141.0,68140.0,0.91456928]
[1718239232746,0.00086,68141.0,68140.0,0.91462315]
[1718239233395,0.00086,68141.0,68140.0,0.81462315]
[1718239233601,0.00086,68141.0,68140.0,0.91462315]
[1718239234736,0.00186,68141.0,68140.0,0.91662315]
[1718239234953,0.00286,68141.0,68140.0,0.92262315]
[1718239237700,0.00286,68141.0,68140.0,0.82262315]
[1718239237898,0.00286,68141.0,68140.0,0.92262315]
[1718239238546,0.00286,68141.0,68140.0,0.82262315]
[1718239238785,0.00286,68141.0,68140.0,0.92262315]
[1718239239220,0.00286,68141.0,68140.0,0.86981993]
[1718239240504,0.00286,68141.0,68140.0,0.76981993]
[1718239245419,0.00286,68141.0,68140.0,0.86981993]
[1718239247621,0.00286,68141.0,68140.0,0.76981993]
[1718239249366,0.00286,68141.0,68140.0,0.82255137]
[1718239249574,0.00286,68141.0,68140.0,0.76981993]
[1718239251206,0.00286,68141.0,68140.0,0.8225463]
[1718239251461,0.00286,68141.0,68140.0,0.9225463]
[1718239251674,0.00286,68141.0,68140.0,0.8225463]
[1718239251902,0.00286,68141.0,68140.0,0.36712637]
[1718239252113,0.00286,68141.0,68140.0,0.3144]
[1718239252327,0.00885205,68141.0,68140.0,0.3144]
[1718239252532,0.00286,68141.0,68140.0,0.3144]
[1718239252746,0.00885205,68141.0,68140.0,0.3144]
[1718239252953,0.00286,68141.0,68140.0,0.3144]
[1718239253165,0.00885205,68141.0,68140.0,0.3144]
[1718239253363,0.00885205,68141.0,68140.0,0.3124]
[1718239253364,0.00785205,68141.0,68140.0,0.3124]
[1718239253838,0.00885205,68141.0,68140.0,0.3044]
[1718239254099,0.00885205,68141.0,68140.0,0.2266]
[1718239254307,0.16086,68141.0,68140.0,0.2206]
[1718239254531,0.16785205,68141.0,68140.0,0.2246]
[1718239255161,0.16685205,68141.0,68140.0,0.2226]
[1718239255385,0.16585205,68141.0,68140.0,0.2186]
[1718239255594,0.16585205,68141.0,68140.0,0.2196]
[1718239255808,0.16585205,68141.0,68140.0,0.2461546]
[1718239256014,0.16585205,68141.0,68140.0,0.2451546]
[1718239256728,0.16685205,68141.0,68140.0,0.2471546]
[1718239257366,0.17285205,68141.0,68140.0,0.2471546]
[1718239257783,0.00685205,68141.0,68140.0,0.2451546]
[1718239257996,0.00985205,68141.0,68140.0,0.2451546]
[1718239258208,0.00985205,68141.0,68140.0,0.2461546]
[1718239258649,0.01085205,68141.0,68140.0,0.4932006]
[1718239258872,0.00785205,68141.0,68140.0,0.4932006]
[1718239259096,0.00086,68141.0,68140.0,0.4932006]
[1718239259315,0.00086,68141.0,68140.0,0.4942006]
[1718239260526,0.00186,68141.0,68140.0,0.4962006]
[1718239261176,0.00086,68141.0,68140.0,0.4942006]
[1718239261605,0.00186,68141.0,68140.0,0.4962006]
[1718239264735,0.00186,68141.0,68140.0,0.5665006]
[1718239265395,0.00186,68141.0,68140.0,0.61931331]
[1718239266318,0.00186,68141.0,68140.0,0.71931044]
[1718239266776,0.00186,68141.0,68140.0,0.61931044]
[1718239266991,0.00186,68141.0,68140.0,0.61930827]
[1718239268325,0.00186,68141.0,68140.0,0.54900827]
[1718239268544,0.00186,68141.0,68140.0,0.61930827]
[1718239269263,0.00186,68141.0,68140.0,0.5665006]
[1718239269470,0.00186,68141.0,68140.0,0.71082053]
[1718239269671,0.00186,68141.0,68140.0,0.81082053]
[1718239269985,0.00186,68141.0,68140.0,0.86358935]
[1718239270192,0.00186,68141.0,68140.0,0.76358935]
[1718239270388,0.00186,68141.0,68140.0,0.86358935]
[1718239270691,0.00186,68141.0,68140.0,1.01798935]
[1718239271086,0.00186,68141.0,68140.0,0.91798935]
[1718239271732,0.00186,68141.0,68140.0,0.86522053]
[1718239272002,0.00186,68141.0,68140.0,0.91799465]
[1718239272206,0.00186,68141.0,68140.0,0.86522053]
[1718239280772,0.00186,68141.0,68140.0,0.79492053]
[1718239281143,0.00186,68141.0,68140.0,0.86522053]
[1718239282319,0.00186,68141.0,68140.0,1.00916463]
[1718239282495,0.00186,68141.0,68140.0,1.02699366]
[1718239282901,0.00186,68141.0,68140.0,1.02700108]
[1718239283489,0.00186,68141.0,68140.0,0.92700108]
[1718239284217,0.00186,68141.0,68140.0,0.88304956]
[1718239284403,0.00186,68141.0,68140.0,0.92700108]
[1718239286111,0.00186,68141.0,68140.0,0.81274956]
[1718239286493,0.00186,68141.0,68140.0,0.222546]
[1718239286894,0.00787586,68141.0,68140.0,0.222546]
[1718239287104,0.00186,68141.0,68140.0,0.232546]
[1718239287304,0.00787586,68141.0,68140.0,0.232546]
[1718239287509,0.00186,68141.0,68140.0,0.232546]
[1718239287718,0.00787586,68141.0,68140.0,0.232546]
[1718239287932,0.00186,68141.0,68140.0,0.232546]
[1718239288148,0.00787586,68141.0,68140.0,0.278546]
[1718239288323,0.00186,68141.0,68140.0,0.278546]
[1718239288543,0.00186,68141.0,68140.0,0.268546]
[1718239289545,0.00186,68141.0,68140.0,0.278546]
[1718239290199,0.00186,68141.0,68140.0,0.268546]
[1718239290401,0.00186,68141.0,68140.0,0.278546]
[1718239290605,0.00786762,68141.0,68140.0,0.268546]
[1718239290808,0.00186,68141.0,68140.0,0.268546]
[1718239292032,0.00786762,68141.0,68140.0,0.33140797]
[1718239292254,0.00786762,68141.0,68140.0,0.37798213]
[1718239294081,0.00786762,68141.0,68140.0,0.32512016]
[1718239300904,0.00786762,68141.0,68140.0,0.31512016]
[1718239305438,0.00786762,68141.0,68140.0,0.32512016]
[1718239305640,0.00786762,68141.0,68140.0,0.31512016]
[1718239310524,0.00186,68141.0,68140.0,0.32512016]
[1718239311007,0.00186,68141.0,68140.0,0.56492016]
[1718239316641,0.00186,68141.0,68140.0,0.60890815]
[1718239317099,0.00186,68141.0,68140.0,0.56492016]
[1718239318027,0.00186,68141.0,68140.0,0.32512016]
[1718239318251,0.24366,68141.0,68140.0,0.35911085]
[1718239318719,0.24967308,68141.0,68140.0,0.31512016]
[1718239321277,0.24967308,68141.0,68140.0,0.268546]
[1718239321520,0.24366,68141.0,68140.0,0.268546]
[1718239321962,0.24967338,68141.0,68140.0,0.268546]
[1718239326194,0.24867338,68141.0,68140.0,0.265546]
[1718239326395,0.24867338,68141.0,68140.0,0.31122408]
[1718239326596,0.24967338,68141.0,68140.0,0.31322408]
[1718239327055,0.24867338,68141.0,68140.0,0.31122408]
[1718239327547,0.24867338,68141.0,68140.0,0.31222408]
[1718239327767,0.24867338,68141.0,68140.0,0.31122408]
[1718239328195,0.24867338,68141.0,68140.0,0.31222408]
[1718239328408,0.24967338,68141.0,68140.0,0.31422408]
[1718239329883,0.00787338,68141.0,68140.0,0.31422408]
[1718239333462,0.00787338,68141.0,68140.0,0.248546]
[1718239333690,0.00787338,68141.0,68140.0,0.268546]
[1718239334501,0.00687338,68141.0,68140.0,0.265546]
[1718239334925,0.00887338,68141.0,68140.0,0.267546]
[1718239335347,0.00286,68141.0,68140.0,0.267546]
[1718239336182,0.00286,68141.0,68140.0,0.2953952]
[1718239339064,0.00286,68141.0,68140.0,0.2753952]
[1718239339253,0.00286,68141.0,68140.0,0.2953952]
[1718239344854,0.00886364,68141.0,68140.0,0.2953952]
[1718239345684,0.08646364,68141.0,68140.0,0.2953952]
[1718239345897,0.00886364,68141.0,68140.0,0.2953952]
[1718239349991,0.00886364,68141.0,68140.0,0.1293952]
[1718239350412,0.00886364,68141.0,68140.0,0.2953952]
[1718239366173,0.01057076,68141.0,68140.0,0.2953952]
[1718239377400,0.01018129,68141.0,68140.0,0.2953952]
[1718239387867,0.01018129,68141.0,68140.0,0.75411513]
[1718239388187,0.00247053,68141.0,68140.0,1.00851513]
[1718239388595,0.00247053,68141.0,68140.0,0.98875214]
[1718239389125,0.00047053,68141.0,68140.0,1.07473873]
[1718239389328,0.00047053,68141.0,68140.0,1.07471304]
[1718239389464,0.00047053,68141.0,68140.0,1.36358653]
[1718239389676,0.00047053,68141.0,68140.0,0.69569311]
[1718239389888,0.00147053,68141.0,68140.0,0.6416565]
[1718239390093,0.00147053,68141.0,68140.0,0.272546]
[1718239390299,0.00147053,68141.0,68140.0,0.282546]
[1718239390573,0.00047053,68141.0,68140.0,0.265546]
[1718239390773,0.00147053,68141.0,68140.0,0.34755973]
[1718239391385,0.00147053,68141.0,68140.0,0.34355973]
[1718239391591,0.00247053,68141.0,68140.0,0.34755973]
[1718239392004,0.00147053,68141.0,68140.0,0.34355973]
[1718239392229,0.00047053,68141.0,68140.0,0.33855973]
[1718239392646,0.00147053,68141.0,68140.0,0.34655973]
[1718239393187,0.00047053,68141.0,68140.0,0.33855973]
[1718239393411,0.00147053,68141.0,68140.0,0.34655973]
[1718239397079,0.00147053,68141.0,68140.0,0.35655973]
[1718239397500,0.00147053,68141.0,68140.0,0.34655973]
[1718239399453,0.00147053,68141.0,68140.0,0.35655973]
[1718239399672,0.00147053,68141.0,68140.0,0.34655973]
[1718239400296,0.00147053,68141.0,68140.0,0.35655973]
[1718239400813,0.00147053,68141.0,68140.0,0.34655973]
[1718239402015,0.00147053,68141.0,68140.0,0.35655973]
[1718239402375,0.00147053,68141.0,68140.0,0.34655973]
[1718239402578,0.00147053,68141.0,68140.0,0.35655973]
[1718239405345,0.00147053,68141.0,68140.0,0.34655973]
[1718239408157,0.00147053,68141.0,68140.0,0.35655973]
[1718239408988,0.00147053,68141.0,68140.0,0.43565973]
[1718239409175,0.00147053,68141.0,68140.0,0.58845973]
[1718239411466,0.00147053,68141.0,68140.0,0.63243573]
[1718239411692,0.00147053,68141.0,68140.0,0.910858]
[1718239411893,0.00147053,68141.0,68140.0,0.866882]
[1718239412091,0.00147053,68141.0,68140.0,1.01120193]
[1718239412738,0.00147053,68141.0,68140.0,1.08406223]
[1718239413118,0.00047053,68141.0,68140.0,1.07306223]
[1718239413315,0.00047053,68141.0,68140.0,1.13864793]
[1718239413513,0.00047053,68141.0,68140.0,1.14664793]
[1718239413514,0.00147053,68141.0,68140.0,1.14664793]
[1718239413952,0.00247053,68141.0,68140.0,1.15064793]
[1718239415320,0.00247053,68141.0,68140.0,1.07815161]
[1718239418707,0.00247053,68141.0,68140.0,1.17815161]
[1718239419185,0.00247053,68141.0,68140.0,1.33255161]
[1718239419932,0.00247053,68141.0,68140.0,1.23255161]
[1718239420194,0.00247053,68141.0,68140.0,1.30479055]
[1718239420400,0.00247053,68141.0,68140.0,1.33255161]
[1718239420627,0.00247053,68141.0,68140.0,1.40489531]
[1718239421292,0.00247053,68141.0,68140.0,1.33894563]
[1718239421751,0.00247053,68141.0,68140.0,1.19845627]
[1718239421965,0.00247053,68141.0,68140.0,1.45090261]
[1718239422183,0.00247053,68141.0,68140.0,1.3629697]
[1718239422880,0.00247053,68141.0,68140.0,1.5129697]
[1718239423836,0.00247053,68141.0,68140.0,1.64486906]
[1718239424293,0.00147053,68141.0,68140.0,1.5089697]
[1718239424770,0.00247053,68141.0,68140.0,1.5149697]
[1718239424990,0.00147053,68141.0,68140.0,1.5069697]
[1718239425510,0.00147053,68141.0,68140.0,1.5209697]
[1718239426601,0.00047053,68141.0,68140.0,1.5149697]
[1718239427883,0.00047053,68141.0,68140.0,1.5289697]
[1718239428138,0.00047053,68141.0,68140.0,1.5992697]
[1718239428347,0.00047053,68141.0,68140.0,1.5852697]
[1718239428554,0.00047053,68141.0,68140.0,1.5992697]
[1718239430059,0.00047053,68141.0,68140.0,1.5289697]
[1718239430283,0.00047053,68141.0,68140.0,1.5992697]
[1718239433331,0.00047053,68141.0,68140.0,1.6051397]
[1718239434377,0.00047053,68141.0,68140.0,1.62292034]
[1718239435685,0.00086,68154.0,68153.0,0.8638]
[1718239435941,0.00086,68154.0,68153.0,1.44561786]
[1718239436158,0.00086,68154.0,68153.0,1.5195106]
[1718239436377,0.00086,68154.0,68153.0,1.60722021]
[1718239437241,0.00186,68154.0,68153.0,1.62122021]
[1718239437454,0.00186,68154.0,68153.0,1.5335106]
[1718239437675,0.00186,68154.0,68153.0,1.5475106]
[1718239437920,0.00186,68154.0,68153.0,1.63520108]
[1718239438579,0.00186,68154.0,68153.0,1.5475106]
[1718239440806,0.00186,68154.0,68153.0,1.48821786]
[1718239441021,0.00186,68154.0,68153.0,1.26791786]
[1718239441258,0.00186,68154.0,68153.0,1.18431786]
[1718239441942,0.00186,68154.0,68153.0,1.03311786]
[1718239442160,0.00186,68154.0,68153.0,1.10341786]
[1718239444462,0.00186,68154.0,68153.0,1.20341786]
[1718239444923,0.00186,68154.0,68153.0,1.02354508]
[1718239445139,0.00186,68154.0,68153.0,0.93944508]
[1718239445366,0.00186,68154.0,68153.0,0.69657152]
[1718239445639,0.00186,68154.0,68153.0,0.71381247]
[1718239446061,0.00929524,68154.0,68153.0,0.71381247]
[1718239446280,0.00186,68154.0,68153.0,0.71381247]
[1718239446497,0.00929524,68154.0,68153.0,0.71381247]
[1718239446709,0.00186,68154.0,68153.0,0.71381247]
[1718239446956,0.00929524,68154.0,68153.0,0.71381247]
[1718239447160,0.00186,68154.0,68153.0,0.71381247]
[1718239447359,0.00929524,68154.0,68153.0,0.71381247]
[1718239447569,0.00186,68154.0,68153.0,0.71381247]
[1718239447777,0.00929524,68154.0,68153.0,0.71381247]
[1718239447994,0.00186,68154.0,68153.0,0.71381247]
[1718239448209,0.00929524,68154.0,68153.0,1.00423467]
[1718239448420,0.00186,68154.0,68153.0,1.00423467]
[1718239448631,0.00186,68154.0,68153.0,0.71381247]
[1718239449056,0.00929524,68154.0,68153.0,0.71381247]
[1718239449266,0.00186,68154.0,68153.0,0.71381247]
[1718239449504,0.00929524,68154.0,68153.0,0.71381247]
[1718239449714,0.00186,68154.0,68153.0,0.71381247]
[1718239449918,0.00929524,68154.0,68153.0,0.71381247]
[1718239450128,0.00186,68154.0,68153.0,0.71381247]
[1718239450297,0.00929524,68154.0,68153.0,0.71381247]
[1718239450544,0.00186,68154.0,68153.0,0.71381247]
[1718239450811,0.00928703,68154.0,68153.0,0.71381247]
[1718239451203,0.00928703,68154.0,68153.0,0.66381247]
[1718239451448,0.00928703,68154.0,68153.0,0.71381247]
[1718239452520,0.00928703,68154.0,68153.0,0.64351247]
[1718239452948,0.00928703,68154.0,68153.0,0.65381247]
[1718239453393,0.00928703,68154.0,68153.0,0.95958837]
[1718239453603,0.25658703,68154.0,68153.0,0.30984095]
[1718239453811,0.24916,68154.0,68153.0,0.30984095]
[1718239454039,0.25658703,68154.0,68153.0,0.2926]
[1718239454535,0.25658703,68154.0,68153.0,0.2726]
[1718239454712,0.25658703,68154.0,68153.0,0.2926]
[1718239455370,0.25658703,68154.0,68153.0,0.2786]
[1718239455773,0.25658703,68154.0,68153.0,0.2926]
[1718239456606,0.25658703,68154.0,68153.0,0.51721993]
[1718239457080,0.25558703,68154.0,68153.0,0.50321993]
[1718239457289,0.00828703,68154.0,68153.0,0.88253696]
[1718239457730,0.00186,68154.0,68153.0,0.89153696]
[1718239458143,0.00086,68154.0,68153.0,0.96973696]
[1718239458328,0.00086,68154.0,68153.0,0.9557288]
[1718239458621,0.00186,68154.0,68153.0,0.9837288]
[1718239459049,0.00186,68154.0,68153.0,0.9697288]
[1718239459259,0.00186,68154.0,68153.0,1.0197288]
[1718239459484,0.00186,68154.0,68153.0,1.1337288]
[1718239460244,0.00186,68154.0,68153.0,1.17763062]
[1718239460972,0.00186,68154.0,68153.0,1.07763062]
[1718239463371,0.00186,68154.0,68153.0,1.0337288]
[1718239466103,0.00186,68154.0,68153.0,1.07766236]
[1718239466306,0.00186,68154.0,68153.0,1.17766236]
[1718239466450,0.00186,68154.0,68153.0,1.49518773]
[1718239466820,0.00186,68154.0,68153.0,1.53908956]
[1718239467255,0.00186,68154.0,68153.0,1.73908956]
[1718239467384,0.00086,68156.0,68155.0,0.8291]
[1718239467600,0.00086,68156.0,68155.0,1.47226499]
[1718239468048,0.00086,68156.0,68155.0,1.49518988]
[1718239469753,0.00086,68156.0,68155.0,1.55518988]
[1718239469957,0.00086,68156.0,68155.0,1.54118988]
[1718239470184,0.00086,68156.0,68155.0,1.55518988]
[1718239470349,0.00086,68156.0,68155.0,1.56918988]
[1718239470545,0.00086,68156.0,68155.0,1.53226499]
[1718239471558,0.00086,68156.0,68155.0,1.54626499]
[1718239472214,0.00086,68156.0,68155.0,1.67792043]
[1718239472783,0.00086,68156.0,68155.0,1.54626499]
[1718239473033,0.00086,68156.0,68155.0,1.67791807]
[1718239474422,0.00086,68156.0,68155.0,1.54626499]
[1718239474848,0.00086,68156.0,68155.0,1.67791807]
[1718239475254,0.00086,68156.0,68155.0,1.53226499]
[1718239476210,0.00086,68156.0,68155.0,1.55021711]
[1718239476577,0.00086,68156.0,68155.0,1.53621711]
[1718239476750,0.00086,68156.0,68155.0,1.55021711]
[1718239476958,0.00086,68156.0,68155.0,1.56421711]
[1718239479737,0.00086,68156.0,68155.0,1.53621711]
[1718239480168,0.00086,68156.0,68155.0,1.56421711]
[1718239481672,0.00086,68156.0,68155.0,1.69587019]
[1718239481888,0.00086,68156.0,68155.0,1.56421711]
[1718239482101,0.00086,68156.0,68155.0,1.54626499]
[1718239482319,0.00086,68156.0,68155.0,1.53226499]
[1718239482733,0.00086,68156.0,68155.0,1.54626499]
[1718239482964,0.00086,68156.0,68155.0,1.53226499]
[1718239483379,0.00086,68156.0,68155.0,1.54618455]
[1718239483831,0.00086,68156.0,68155.0,1.53218456]
[1718239484190,0.00086,68156.0,68155.0,1.54618456]
[1718239484394,0.00086,68156.0,68155.0,1.5461846]
[1718239486476,0.00086,68156.0,68155.0,1.56374492]
[1718239486621,0.00086,68156.0,68155.0,1.31764492]
[1718239487231,0.00086,68156.0,68155.0,1.30364492]
[1718239487658,0.00086,68156.0,68155.0,1.28964492]
[1718239488208,0.00086,68192.0,68167.0,0.629]
[1718239488414,0.00086,68192.0,68167.0,1.33160837]
[1718239488666,0.00086,68192.0,68167.0,1.49734484]
[1718239488897,0.00086,68192.0,68167.0,1.47254598]
[1718239489290,0.00086,68192.0,68167.0,1.48714598]
[1718239489502,0.00086,68192.0,68167.0,1.48719025]
[1718239489630,0.18988091,68168.0,68167.0,1.48719025]
[1718239489852,0.18533691,68168.0,68167.0,1.48719025]
[1718239490241,0.18533691,68168.0,68167.0,1.51519025]
[1718239493304,0.17373991,68168.0,68167.0,1.51519025]
[1718239493731,0.17373991,68168.0,68167.0,1.62463568]
[1718239494150,0.17373991,68168.0,68167.0,1.51519025]
[1718239494324,0.17373991,68168.0,68167.0,1.21096177]
[1718239494540,0.17373991,68168.0,68167.0,1.82013069]
[1718239494747,0.17373991,68168.0,68167.0,1.71069392]
[1718239494996,0.17373991,68168.0,68167.0,1.8201292]
[1718239495202,0.17373991,68168.0,68167.0,1.96555335]
[1718239495417,0.17373991,68168.0,68167.0,1.8201292]
[1718239495617,0.17373991,68168.0,68167.0,1.85611807]
[1718239495829,0.17373991,68168.0,68167.0,1.71069392]
[1718239496007,0.17373991,68168.0,68167.0,1.82012106]
[1718239496241,0.17373991,68168.0,68167.0,1.96554543]
[1718239496484,0.17373991,68168.0,68167.0,1.85611807]
[1718239496624,0.17373991,68168.0,68167.0,1.96554032]
[1718239496835,0.17373991,68168.0,68167.0,1.66580817]
[1718239497013,0.12407546,68168.0,68167.0,1.81878228]
[1718239497229,0.00086,68192.0,68167.0,1.81878228]
[1718239497230,0.00086,68192.0,68191.0,0.3746]
[1718239497462,0.00086,68192.0,68191.0,0.74361993]
[1718239497668,0.00086,68192.0,68191.0,1.12397208]
[1718239497879,0.00086,68192.0,68191.0,1.17397208]
[1718239498509,0.00086,68192.0,68191.0,1.22397208]
[1718239498716,0.00086,68192.0,68191.0,1.2823751]
[1718239499123,0.00086,68192.0,68191.0,1.2953751]
[1718239499323,0.00086,68192.0,68191.0,1.2390751]
[1718239499536,0.00086,68192.0,68191.0,1.2963751]
[1718239499749,0.00086,68192.0,68191.0,1.2823751]
[1718239499980,0.00086,68192.0,68191.0,1.2963751]
[1718239500189,0.00086,68192.0,68191.0,1.3103751]
[1718239500395,0.00086,68192.0,68191.0,1.2823751]
[1718239500800,0.00086,68192.0,68191.0,1.3103751]
[1718239501000,0.00086,68192.0,68191.0,0.8856751]
[1718239501225,0.24176,68192.0,68191.0,0.9356751]
[1718239501427,0.24176,68192.0,68191.0,1.00603305]
[1718239501637,0.24176,68192.0,68191.0,0.95603305]
[1718239502074,0.24176,68192.0,68191.0,0.6756809]
[1718239505749,0.00086,68192.0,68191.0,0.99761578]
[1718239506165,0.00086,68192.0,68191.0,1.03364941]
[1718239506796,0.00086,68192.0,68191.0,1.01964941]
[1718239507034,0.00086,68192.0,68191.0,1.00564941]
[1718239507233,0.00086,68192.0,68191.0,1.62219534]
[1718239507435,0.00086,68192.0,68191.0,1.63619534]
[1718239507717,0.00086,68192.0,68191.0,1.57844969]
[1718239508076,0.00086,68192.0,68191.0,1.67298352]
[1718239508614,0.00086,68192.0,68191.0,1.66418324]
[1718239509037,0.00086,68192.0,68191.0,1.67818324]
[1718239512134,0.00086,68192.0,68191.0,1.66418324]
[1718239512463,0.00086,68192.0,68191.0,1.69392246]
[1718239512668,0.00086,68192.0,68191.0,1.70438758]
[1718239513076,0.00086,68192.0,68191.0,1.69039781]
[1718239513300,0.00086,68192.0,68191.0,1.69919809]
[1718239513501,0.00086,68192.0,68191.0,1.71319809]
[1718239513928,0.00086,68192.0,68191.0,1.61866426]
[1718239514159,0.00086,68192.0,68191.0,1.71614367]
[1718239514587,0.00086,68192.0,68191.0,2.03332598]
[1718239514779,0.00086,68192.0,68191.0,2.07707543]
[1718239514983,0.00086,68192.0,68191.0,2.10640543]
[1718239515347,0.00086,68192.0,68191.0,2.00489788]
[1718239515567,0.00086,68192.0,68191.0,2.10023822]
[1718239515770,0.00086,68192.0,68191.0,1.99089788]
[1718239516012,0.00086,68192.0,68191.0,1.97689788]
[1718239516241,0.00086,68192.0,68191.0,2.10023727]
[1718239516441,0.00086,68192.0,68191.0,2.00489788]
[1718239516652,0.00086,68192.0,68191.0,2.10021931]
[1718239517001,0.00086,68192.0,68191.0,2.11421931]
[1718239517616,0.00086,68192.0,68191.0,2.00489788]
[1718239518919,0.00086,68192.0,68191.0,2.00605118]
[1718239519337,0.00858,68205.0,68201.0,0.4246]
[1718239519554,0.00858,68205.0,68201.0,1.09461332]
[1718239520860,0.00858,68205.0,68201.0,1.10861332]
[1718239521065,0.00858,68205.0,68201.0,1.15861332]
[1718239521612,0.00858,68205.0,68201.0,1.15071356]
[1718239521785,0.00858,68205.0,68201.0,1.15951164]
[1718239522191,0.00858,68205.0,68201.0,1.17351164]
[1718239522752,0.00858,68205.0,68201.0,1.43634164]
[1718239522969,0.00858,68205.0,68201.0,1.39821356]
[1718239523081,0.00858,68205.0,68201.0,1.6135378]
[1718239523540,0.00858,68205.0,68201.0,1.61587916]
[1718239523891,0.00858,68205.0,68201.0,1.60187916]
[1718239524129,0.00858,68205.0,68201.0,1.61587916]
[1718239524331,0.00858,68205.0,68201.0,1.76219494]
[1718239524545,0.00858,68205.0,68201.0,1.67587351]
[1718239524700,0.00056472,68202.0,68201.0,1.67587306]
[1718239524905,0.00056472,68202.0,68201.0,1.66187306]
[1718239525316,0.00056472,68202.0,68201.0,1.67587306]
[1718239525528,0.00056472,68202.0,68201.0,1.66187306]
[1718239525769,0.00056472,68202.0,68201.0,1.68457948]
[1718239526272,0.00056472,68202.0,68201.0,1.67057948]
[1718239526485,0.00056472,68202.0,68201.0,1.64767306]
[1718239526754,0.00858,68205.0,68204.0,1.072368]
[1718239526967,0.00858,68205.0,68204.0,1.73977396]
[1718239527170,0.00858,68205.0,68204.0,1.63057171]
[1718239528206,0.00858,68205.0,68204.0,1.73977396]
[1718239528413,0.00858,68205.0,68204.0,1.63057171]
[1718239529053,0.00086,68212.0,68211.0,0.282603]
[1718239529276,0.00858,68219.0,68218.0,1.6424]
[1718239529489,0.1599,68239.0,68220.0,0.61235]
[1718239529705,0.1599,68239.0,68220.0,1.07637954]
[1718239530370,0.1599,68239.0,68220.0,1.14268333]
[1718239530603,0.0914732,68240.0,68220.0,1.05209934]
[1718239530820,0.1565,68231.0,68220.0,1.05209934]
[1718239530999,0.1565,68231.0,68220.0,1.19229934]
[1718239531457,0.1565,68231.0,68220.0,1.21685589]
[1718239531675,0.0914732,68240.0,68220.0,1.21560399]
[1718239531898,0.0914732,68240.0,68236.0,0.579]
[1718239532108,0.2479732,68240.0,68236.0,1.13994939]
[1718239532549,0.2479732,68240.0,68236.0,1.05454939]
[1718239532768,0.2479732,68240.0,68236.0,1.15454939]
[1718239533039,0.2479732,68240.0,68236.0,1.05454939]
[1718239533492,0.2479732,68240.0,68236.0,1.16854939]
[1718239533882,0.2479732,68240.0,68236.0,1.05454939]
[1718239534098,0.2479732,68240.0,68236.0,0.91434939]
[1718239534354,0.2479732,68240.0,68236.0,1.05454939]
[1718239534796,0.2479732,68240.0,68236.0,1.06854939]
[1718239535017,0.2479732,68240.0,68236.0,1.05454939]
[1718239535232,0.2479732,68240.0,68236.0,1.06854939]
[1718239535441,0.2479732,68240.0,68236.0,1.08254939]
[1718239535651,0.2479732,68240.0,68236.0,1.18254939]
[1718239535859,0.2479732,68240.0,68236.0,1.16854939]
[1718239536277,0.2479732,68240.0,68236.0,1.08254939]
[1718239540176,0.2479732,68240.0,68236.0,1.08253332]
[1718239543439,0.0105732,68240.0,68236.0,1.08253332]
[1718239543667,0.0105732,68240.0,68236.0,1.25367682]
[1718239543894,0.0105732,68240.0,68236.0,1.34488332]
[1718239544112,0.0105732,68240.0,68236.0,1.24488332]
[1718239544337,0.0105732,68240.0,68236.0,1.34488332]
[1718239544563,0.0105732,68240.0,68236.0,1.33088332]
[1718239544769,0.0105732,68240.0,68236.0,1.47743332]
[1718239544974,0.0105732,68240.0,68236.0,1.24488332]
[1718239545175,0.0105732,68240.0,68236.0,1.24590788]
[1718239545304,0.0105732,68240.0,68236.0,1.23190788]
[1718239545723,0.0105732,68240.0,68236.0,1.24590788]
[1718239545994,0.0105732,68240.0,68236.0,1.23190788]
[1718239546346,0.0105732,68240.0,68236.0,1.21790788]
[1718239546600,0.0105732,68240.0,68236.0,1.33250213]
[1718239547211,0.0091532,68240.0,68239.0,0.2786]
[1718239547424,0.0091532,68240.0,68239.0,0.67731993]
[1718239547644,0.0091532,68240.0,68239.0,0.83835213]
[1718239548277,0.0091532,68240.0,68239.0,0.84714444]
[1718239548475,0.0091532,68240.0,68239.0,0.83835213]
[1718239548645,0.0091532,68240.0,68239.0,0.85235213]
[1718239548855,0.0091532,68240.0,68239.0,0.86635213]
[1718239549458,0.0091532,68240.0,68239.0,0.85235213]
[1718239549716,0.0091532,68240.0,68239.0,0.86635213]
[1718239550565,0.0091532,68240.0,68239.0,0.85235213]
[1718239551007,0.0091532,68240.0,68239.0,0.90835213]
[1718239551132,0.0091532,68240.0,68239.0,1.00835213]
[1718239551373,0.0091532,68240.0,68239.0,0.99435012]
[1718239551610,0.0091532,68240.0,68239.0,1.00835012]
[1718239551810,0.0091532,68240.0,68239.0,0.99435012]
[1718239552026,0.0091532,68240.0,68239.0,1.00835012]
[1718239552445,0.0091532,68240.0,68239.0,1.02235012]
[1718239553882,0.0091532,68240.0,68239.0,0.92235012]
[1718239554975,0.1615532,68240.0,68239.0,0.88436822]
[1718239555178,0.1615532,68240.0,68239.0,0.94514013]
[1718239555379,0.0091532,68240.0,68239.0,0.94514013]
[1718239556008,0.0091532,68240.0,68239.0,0.88436822]
[1718239556212,0.0091532,68240.0,68239.0,0.94514022]
[1718239557405,0.0091532,68240.0,68239.0,0.94515581]
[1718239561814,0.0091532,68240.0,68239.0,0.84489705]
[1718239562020,0.0091532,68240.0,68239.0,1.04723247]
[1718239562759,0.0091532,68240.0,68239.0,0.94723247]
[1718239562982,0.00858,68261.0,68260.0,0.2646]
[1718239563210,0.00858,68261.0,68260.0,0.46491993]
[1718239563434,0.00858,68261.0,68260.0,0.62802735]
[1718239563641,0.25698,68261.0,68260.0,0.62802735]
[1718239564080,0.26606833,68261.0,68260.0,0.62802735]
[1718239564511,0.26606833,68261.0,68260.0,0.64202735]
[1718239565039,0.26606833,68261.0,68260.0,0.40770742]
[1718239565239,0.26606833,68261.0,68260.0,0.42170742]
[1718239565450,0.25698,68261.0,68260.0,0.44170742]
[1718239565656,0.25698,68261.0,68260.0,0.45570742]
[1718239565869,0.26606833,68261.0,68260.0,0.45570742]
[1718239566344,0.26606833,68261.0,68260.0,0.58602735]
[1718239566976,0.26606833,68261.0,68260.0,0.5931285]
[1718239567197,0.26606833,68261.0,68260.0,0.5851285]
[1718239567414,0.26606833,68261.0,68260.0,0.5711285]
[1718239567619,0.26606833,68261.0,68260.0,0.5851285]
[1718239567765,0.26606833,68261.0,68260.0,0.5711285]
[1718239567972,0.26606833,68261.0,68260.0,0.5710877]
[1718239568175,0.26606833,68261.0,68260.0,0.5850877]
[1718239568566,0.26606833,68261.0,68260.0,0.5990877]
[1718239569386,0.26606833,68261.0,68260.0,0.5850877]
[1718239569603,0.26606833,68261.0,68260.0,0.5990877]